bitfinex/quotes_SOLUSD_20250326
["timestamp","ask_amount","ask_price","bid_price","bid_amount"]
[1743005270747,6.54,139.36,139.34,0.063]
[1743005270951,30.00404434,139.36,139.34,0.063]
[1743005271158,6.54,139.36,139.34,0.063]
[1743005274466,6.54,139.36,139.34,23.52704434]
[1743005274765,6.54,139.38,139.35,23.46404434]
[1743005275767,23.46404434,139.41,139.36,23.46404434]
[1743005276067,6.54,139.4,139.36,23.46404434]
[1743005276459,82.0,139.37,139.36,23.46404434]
[1743005276863,82.0,139.37,139.35,23.46404434]
[1743005277242,82.0,139.37,139.34,23.52704434]
[1743005277768,82.0,139.37,139.35,23.46404434]
[1743005279173,82.0,139.39,139.36,23.46404434]
[1743005279367,82.0,139.41,139.38,23.46404434]
[1743005279553,82.0,139.41,139.39,23.46404434]
[1743005280785,82.0,139.41,139.38,23.46404434]
[1743005280988,0.03,139.4,139.38,23.46404434]
[1743005281189,0.03,139.4,139.39,23.46404434]
[1743005281586,0.03,139.4,139.39,42.1136932]
[1743005281775,0.03,139.4,139.39,23.46404434]
[1743005282399,0.03,139.4,139.38,23.46404434]
[1743005282697,0.03,139.4,139.39,23.46404434]
[1743005284600,0.03,139.4,139.39,42.1136932]
[1743005289202,0.03,139.4,139.39,47.72649095]
[1743005289387,0.03,139.4,139.39,42.1136932]
[1743005293004,82.0,139.45,139.42,20.0]
[1743005293210,0.03,139.46,139.44,23.46404434]
[1743005293387,0.03,139.46,139.45,23.46404434]
[1743005294008,0.03,139.46,139.44,23.46404434]
[1743005294714,0.03,139.46,139.45,23.46404434]
[1743005296512,0.03,139.46,139.44,23.46404434]
[1743005299807,0.03,139.46,139.45,23.46404434]
[1743005300016,82.0,139.5,139.49,23.46404434]
[1743005300349,82.0,139.53,139.49,23.46404434]
[1743005300509,82.0,139.52,139.48,23.46404434]
[1743005302509,82.0,139.52,139.49,23.46404434]
[1743005303020,82.0,139.52,139.5,23.46404434]
[1743005303192,82.0,139.52,139.45,22.21697833]
[1743005303193,82.0,139.52,139.51,23.46404434]
[1743005305212,0.03,139.54,139.51,23.46404434]
[1743005305399,0.03,139.54,139.53,23.46404434]
[1743005311609,0.03,139.54,139.53,42.1136932]
[1743005312721,0.03,139.54,139.53,47.94844877]
[1743005313124,0.03,139.54,139.53,48.09061034]
[1743005313530,0.03,139.54,139.53,48.6336932]
[1743005313846,0.03,139.54,139.53,48.77585477]
[1743005314231,0.03,139.54,139.53,48.6336932]
[1743005317215,0.03,139.54,139.53,48.6336932]
[1743005318436,0.03,139.6,139.56,20.0]
[1743005318640,0.03,139.6,139.59,23.46404434]
[1743005320027,0.03,139.6,139.59,42.1136932]
[1743005325826,0.03,139.65,139.63,20.0]
[1743005326030,0.03,139.65,139.64,23.46404434]
[1743005327251,0.03,139.65,139.63,43.46404434]
[1743005328255,0.03,139.65,139.62,23.46404434]
[1743005328552,0.03,139.65,139.63,23.46404434]
[1743005328737,0.03,139.65,139.64,23.46404434]
[1743005329129,0.03,139.65,139.64,42.1136932]
[1743005329449,0.03,139.65,139.64,65.57773754]
[1743005329656,0.063,139.67,139.65,18.933972]
[1743005329952,0.063,139.71,139.7,23.46404434]
[1743005330336,0.063,139.71,139.7,42.1136932]
[1743005331644,0.063,139.71,139.7,42.39801634]
[1743005331855,0.063,139.71,139.7,42.1136932]
[1743005332238,0.063,139.71,139.7,42.39801634]
[1743005332643,79.156,139.78,139.71,18.64964886]
[1743005332847,79.156,139.78,139.74,23.46404434]
[1743005333751,79.156,139.78,139.75,23.46404434]
[1743005334074,79.156,139.78,139.74,23.46404434]
[1743005335140,79.156,139.78,139.75,23.46404434]
[1743005335341,79.156,139.78,139.76,23.46404434]
[1743005335845,0.03,139.79,139.72,42.1136932]
[1743005335846,0.03,139.79,139.77,23.46404434]
[1743005336043,0.03,139.79,139.78,23.46404434]
[1743005337160,0.03,139.79,139.76,23.46404434]
[1743005337764,0.03,139.79,139.77,23.46404434]
[1743005338467,0.03,139.79,139.78,23.46404434]
[1743005338762,0.03,139.79,139.77,23.46404434]
[1743005339066,0.03,139.79,139.76,23.46404434]
[1743005339764,0.03,139.79,139.71,1.94132314]
[1743005339765,23.46404434,139.78,139.71,1.657]
[1743005339944,0.03,139.79,139.76,23.46404434]
[1743005340342,0.03,139.79,139.77,23.46404434]
[1743005340550,0.03,139.79,139.78,23.46404434]
[1743005341269,0.03,139.79,139.76,38.64964886]
[1743005341452,0.03,139.79,139.76,23.46404434]
[1743005341762,0.03,139.79,139.75,23.46404434]
[1743005341968,23.46404434,139.78,139.73,23.46404434]
[1743005342147,102.62004434,139.77,139.72,42.1136932]
[1743005343171,79.156,139.77,139.73,23.46404434]
[1743005343562,79.156,139.77,139.75,23.46404434]
[1743005343967,79.156,139.77,139.74,23.46404434]
[1743005344173,79.156,139.77,139.74,18.64964886]
[1743005344369,79.156,139.77,139.74,42.1136932]
[1743005344556,79.156,139.77,139.75,23.46404434]
[1743005344751,79.156,139.77,139.76,23.46404434]
[1743005344962,0.03,139.79,139.76,23.46404434]
[1743005345160,0.03,139.79,139.78,23.46404434]
[1743005345363,0.03,139.79,139.78,42.1136932]
[1743005347854,23.49404434,139.79,139.72,18.64964886]
[1743005348167,23.49404434,139.79,139.74,23.46404434]
[1743005348474,0.03,139.79,139.75,23.46404434]
[1743005348777,0.03,139.79,139.74,23.46404434]
[1743005348778,23.49404434,139.79,139.74,23.46404434]
[1743005349974,0.03,139.79,139.74,23.46404434]
[1743005350183,0.03,139.79,139.75,23.46404434]
[1743005350386,0.03,139.79,139.77,23.46404434]
[1743005350679,0.03,139.79,139.76,23.46404434]
[1743005351195,0.03,139.79,139.78,23.46404434]
[1743005351489,0.03,139.79,139.78,42.1136932]
[1743005354981,0.03,139.79,139.78,42.1766932]
[1743005355772,0.03,139.79,139.78,18.71264886]
[1743005355968,0.03,139.79,139.78,42.1766932]
[1743005357076,0.03,139.79,139.78,42.46101634]
[1743005357265,0.03,139.79,139.78,18.71264886]
[1743005357581,0.03,139.79,139.78,42.1766932]
[1743005358382,0.03,139.79,139.78,18.71264886]
[1743005358686,0.03,139.79,139.78,42.1766932]
[1743005359074,0.03,139.79,139.78,18.71264886]
[1743005359780,0.03,139.79,139.78,0.063]
[1743005360185,23.49404434,139.79,139.78,0.063]
[1743005360763,23.63620591,139.79,139.78,0.063]
[1743005360964,47.10025025,139.79,139.78,0.063]
[1743005361183,23.49404434,139.79,139.78,0.063]
[1743005365995,0.03,139.79,139.78,0.063]
[1743005367675,23.49404434,139.79,139.78,0.063]
[1743005370522,0.03,139.79,139.78,0.063]
[1743005374828,0.03,139.79,139.78,42.31885477]
[1743005375724,0.03,139.79,139.78,42.46101634]
[1743005377299,0.03,139.79,139.78,42.31885477]
[1743005377534,0.03,139.79,139.78,42.46101634]
[1743005377742,0.03,139.79,139.78,42.31885477]
[1743005377916,0.03,139.79,139.78,42.1766932]
[1743005378431,0.03,139.79,139.78,42.31885477]
[1743005379930,0.03,139.79,139.78,42.46101634]
[1743005382042,0.03,139.79,139.78,125.20317791]
[1743005383436,0.03,139.79,139.78,148.66722225]
[1743005383623,0.03,139.84,139.83,42.1136932]
[1743005384030,0.03,139.84,139.83,18.64964886]
[1743005384229,0.03,139.84,139.83,42.1136932]
[1743005384745,0.03,139.84,139.81,43.46404434]
[1743005384933,0.03,139.84,139.82,18.64964886]
[1743005386154,0.03,139.84,139.81,23.46404434]
[1743005387846,0.03,139.84,139.82,23.46404434]
[1743005388141,0.03,139.84,139.81,23.46404434]
[1743005388324,0.03,139.84,139.82,18.64964886]
[1743005388921,23.29452957,139.86,139.82,18.64964886]
[1743005389843,23.46404434,139.84,139.8,18.64964886]
[1743005391032,105.46404434,139.86,139.81,42.1136932]
[1743005391633,23.46404434,139.85,139.81,18.64964886]
[1743005391845,105.46404434,139.86,139.81,42.1136932]
[1743005392326,82.0,139.86,139.81,42.1136932]
[1743005392735,105.46404434,139.86,139.81,42.1136932]
[1743005393139,23.46404434,139.85,139.8,20.0]
[1743005393345,23.46404434,139.84,139.8,20.0]
[1743005393860,23.46404434,139.81,139.78,0.063]
[1743005394239,107.05054434,139.82,139.78,0.063]
[1743005394433,107.05054434,139.82,139.78,18.71264886]
[1743005394657,82.0,139.82,139.79,18.64964886]
[1743005395056,6.5,139.83,139.8,18.64964886]
[1743005395248,82.0,139.85,139.81,23.46404434]
[1743005395447,25.12764434,139.86,139.82,18.64964886]
[1743005396654,23.46404434,139.85,139.8,23.46404434]
[1743005396955,23.46404434,139.85,139.81,18.64964886]
[1743005397666,23.46404434,139.84,139.78,82.663]
[1743005397853,23.46404434,139.83,139.79,18.64964886]
[1743005399768,82.0,139.84,139.8,18.64964886]
[1743005400266,82.0,139.84,139.8,23.46404434]
[1743005400470,82.0,139.84,139.79,42.1136932]
[1743005400649,105.46404434,139.84,139.8,18.64964886]
[1743005401646,23.46404434,139.83,139.78,23.52704434]
[1743005401961,23.46404434,139.83,139.79,18.64964886]
[1743005402265,105.46404434,139.84,139.79,23.46404434]
[1743005403271,105.49404434,139.84,139.79,23.46404434]
[1743005406667,23.46404434,139.82,139.78,0.063]
[1743005406967,23.46404434,139.81,139.78,0.063]
[1743005408470,23.46404434,139.8,139.78,0.063]
[1743005408672,23.46404434,139.79,139.78,0.063]
[1743005408856,23.46404434,139.8,139.78,0.063]
[1743005409055,23.46404434,139.81,139.78,0.063]
[1743005409253,6.5,139.82,139.78,0.063]
[1743005409561,29.96404434,139.82,139.78,0.063]
[1743005409768,0.03,139.84,139.8,23.46404434]
[1743005409965,0.03,139.84,139.79,42.1136932]
[1743005410173,23.49404434,139.84,139.79,42.1136932]
[1743005410781,23.46404434,139.82,139.78,0.063]
[1743005411659,23.46404434,139.81,139.78,0.063]
[1743005412274,23.46404434,139.8,139.78,0.063]
[1743005412973,23.46404434,139.81,139.78,0.063]
[1743005413173,82.0,139.82,139.78,18.71264886]
[1743005413363,82.0,139.82,139.78,42.1766932]
[1743005413979,82.0,139.82,139.78,18.71264886]
[1743005414178,82.0,139.82,139.78,23.52704434]
[1743005416275,82.0,139.82,139.78,0.063]
[1743005416474,82.0,139.82,139.79,23.46404434]
[1743005416889,82.0,139.82,139.78,23.52704434]
[1743005417886,105.46404434,139.82,139.78,18.71264886]
[1743005418607,105.46404434,139.82,139.78,0.063]
[1743005418808,23.46404434,139.81,139.78,0.063]
[1743005419511,23.46404434,139.8,139.78,0.063]
[1743005420076,23.46404434,139.81,139.78,0.063]
[1743005420681,111.96404434,139.82,139.78,0.063]
[1743005420977,88.5,139.82,139.78,0.063]
[1743005421380,88.5,139.82,139.78,18.71264886]
[1743005422283,111.96404434,139.82,139.78,18.71264886]
[1743005422808,111.96404434,139.82,139.78,0.063]
[1743005423108,23.46404434,139.81,139.78,0.063]
[1743005423502,111.96404434,139.82,139.78,0.063]
[1743005424084,88.5,139.82,139.78,23.52704434]
[1743005426204,0.03,139.84,139.81,18.64964886]
[1743005426405,0.03,139.84,139.82,23.46404434]
[1743005426589,0.03,139.84,139.83,23.46404434]
[1743005427503,0.03,139.84,139.82,23.46404434]
[1743005427997,0.03,139.84,139.83,23.46404434]
[1743005429889,0.03,139.84,139.83,42.1136932]
[1743005432493,23.49404434,139.84,139.78,0.063]
[1743005432706,23.46404434,139.82,139.78,18.71264886]
[1743005433119,23.46404434,139.82,139.78,0.063]
[1743005433120,23.46404434,139.79,139.78,0.063]
[1743005435214,105.46404434,139.8,139.78,0.063]
[1743005435819,82.0,139.8,139.78,0.063]
[1743005436723,6.5,139.81,139.78,0.063]
[1743005437701,29.96404434,139.81,139.78,0.063]
[1743005439721,6.5,139.81,139.78,0.063]
[1743005439925,29.96404434,139.81,139.78,0.063]
[1743005440324,6.5,139.81,139.78,0.063]
[1743005440510,29.96404434,139.81,139.78,0.063]
[1743005440829,23.46404434,139.8,139.78,0.063]
[1743005441727,29.96404434,139.81,139.78,0.063]
[1743005443125,23.46404434,139.8,139.78,0.063]
[1743005443425,6.5,139.81,139.78,0.063]
[1743005443426,23.46404434,139.79,139.78,0.063]
[1743005450239,105.46404434,139.8,139.78,0.063]
[1743005451655,82.0,139.8,139.78,0.063]
[1743005454124,105.46404434,139.8,139.78,0.063]
[1743005457335,23.46404434,139.79,139.78,0.063]
[1743005458343,105.46404434,139.8,139.78,0.063]
[1743005459141,82.0,139.8,139.78,0.063]
[1743005460233,23.46404434,139.82,139.78,0.063]
[1743005460852,23.46404434,139.81,139.78,0.063]
[1743005461056,23.46404434,139.8,139.78,0.063]
[1743005462148,23.46404434,139.79,139.78,0.063]
[1743005463832,23.46404434,139.8,139.78,0.063]
[1743005464857,23.46404434,139.81,139.78,0.063]
[1743005465051,14.92822509,139.81,139.78,0.063]
[1743005466736,14.92822509,139.8,139.78,0.063]
[1743005467662,14.92822509,139.79,139.78,0.063]
[1743005468183,82.0,139.82,139.78,0.063]
[1743005468380,6.48,139.83,139.78,0.063]
[1743005468381,82.0,139.81,139.78,0.063]
[1743005469876,88.48,139.83,139.78,18.71264886]
[1743005470069,82.0,139.83,139.78,14.99122509]
[1743005470453,96.92822509,139.83,139.78,14.99122509]
[1743005470853,105.3179218,139.83,139.79,18.64964886]
[1743005473381,82.0,139.83,139.79,41.96757066]
[1743005473568,0.03,139.84,139.82,18.64964886]
[1743005473769,0.03,139.84,139.82,41.96757066]
[1743005473977,0.03,139.84,139.82,18.64964886]
[1743005474484,23.3179218,139.83,139.78,0.063]
[1743005474780,23.3179218,139.81,139.78,0.063]
[1743005477074,23.3179218,139.79,139.78,0.063]
[1743005478078,105.3179218,139.8,139.78,0.063]
[1743005478280,82.0,139.8,139.78,0.063]
[1743005480681,23.3179218,139.82,139.78,0.063]
[1743005481186,23.3179218,139.81,139.78,0.063]
[1743005482084,23.3179218,139.82,139.78,0.063]
[1743005482283,105.3179218,139.83,139.79,18.64964886]
[1743005482785,23.3479218,139.84,139.8,18.64964886]
[1743005482986,23.3179218,139.83,139.78,0.063]
[1743005483183,23.3179218,139.82,139.78,0.063]
[1743005484182,29.8279218,139.84,139.8,18.64964886]
[1743005484682,0.03,139.84,139.81,23.46008337]
[1743005485795,0.03,139.84,139.83,18.64964886]
[1743005485981,0.03,139.84,139.82,18.64964886]
[1743005486176,0.03,139.87,139.83,42.10973223]
[1743005486492,0.03,139.87,139.86,41.96757066]
[1743005486665,0.03,139.87,139.86,42.10973223]
[1743005487807,0.03,139.87,139.86,18.79181043]
[1743005487976,0.03,139.87,139.86,42.10973223]
[1743005488295,0.03,139.87,139.86,42.2518938]
[1743005489998,0.03,139.87,139.86,45.8530374]
[1743005490502,0.03,139.87,139.86,45.99519897]
[1743005490993,0.03,139.87,139.86,128.59519897]
[1743005491389,0.03,139.87,139.86,151.91312077]
[1743005491897,0.03,139.87,139.86,158.39312077]
[1743005494117,0.03,139.87,139.86,135.07519897]
[1743005494483,0.03,139.87,139.86,134.79087583]
[1743005494685,0.03,139.87,139.86,52.19087583]
[1743005496098,0.03,139.87,139.86,45.71087583]
[1743005498092,0.03,139.87,139.86,22.39295403]
[1743005498305,0.03,139.87,139.86,45.71087583]
[1743005499088,0.03,139.87,139.86,69.31312077]
[1743005501490,0.03,139.87,139.86,151.91312077]
[1743005501910,0.03,139.87,139.86,358.13312077]
[1743005511009,0.03,139.87,139.86,385.98449762]
[1743005514643,0.03,139.93,139.9,20.28432314]
[1743005514816,1.5407,139.96,139.94,14.89744409]
[1743005515314,0.03,139.98,139.95,14.89744409]
[1743005515526,0.03,139.98,139.95,33.54709295]
[1743005515928,0.03,139.98,139.94,38.64964886]
[1743005516228,0.03,139.98,139.95,14.89744409]
[1743005526345,0.03,139.98,139.96,18.64964886]
[1743005527241,0.03,139.98,139.94,6.48]
[1743005527425,0.03,139.98,139.97,34.89744409]
[1743005527628,0.03,139.98,139.94,6.48]
[1743005527828,0.03,139.98,139.95,33.54709295]
[1743005528028,0.03,139.98,139.96,14.89744409]
[1743005528745,0.03,139.98,139.95,33.54709295]
[1743005530439,0.03,139.98,139.96,14.89744409]
[1743005532645,0.03,139.98,139.95,33.54709295]
[1743005532949,0.03,139.98,139.95,18.64964886]
[1743005533342,14.89744409,139.97,139.93,18.64964886]
[1743005533552,14.89744409,139.95,139.92,206.14]
[1743005533841,14.39744409,139.95,139.92,206.14]
[1743005534050,14.89744409,139.95,139.92,206.14]
[1743005534646,14.89744409,139.96,139.92,206.14]
[1743005535029,14.89744409,139.95,139.92,206.14]
[1743005535346,14.89744409,139.93,139.92,206.14]
[1743005535551,14.89744409,139.93,139.89,18.64964886]
[1743005535744,14.89744409,139.92,139.87,18.79181043]
[1743005536047,22.73254409,139.94,139.89,14.89744409]
[1743005536251,1.5931,139.94,139.91,14.89744409]
[1743005536439,82.0,139.95,139.91,14.89744409]
[1743005536831,82.0,139.95,139.92,14.89744409]
[1743005537043,7.9911,139.97,139.93,14.89744409]
[1743005537532,22.88854409,139.97,139.92,14.89744409]
[1743005540359,14.89744409,139.95,139.91,20.063]
[1743005540930,14.89744409,139.95,139.91,0.063]
[1743005542452,96.89744409,139.96,139.91,14.96044409]
[1743005542759,96.92744409,139.98,139.93,14.89744409]
[1743005542963,82.03,139.98,139.94,14.89744409]
[1743005543163,0.03,139.98,139.94,14.89744409]
[1743005543364,0.03,139.98,139.95,18.64964886]
[1743005543745,14.92744409,139.98,139.93,14.89744409]
[1743005544269,14.92744409,139.98,139.92,15.03960566]
[1743005544663,14.92744409,139.98,139.93,14.89744409]
[1743005544965,0.03,139.98,139.93,14.89744409]
[1743005546049,0.03,139.98,139.95,18.64964886]
[1743005546757,0.03,139.98,139.94,18.64964886]
[1743005547660,14.89744409,139.96,139.91,18.85481043]
[1743005547859,14.89744409,139.96,139.91,33.75225452]
[1743005548256,14.89744409,139.96,139.91,18.85481043]
[1743005548459,14.89744409,139.96,139.91,33.75225452]
[1743005548978,14.89744409,139.97,139.91,33.75225452]
[1743005549160,14.89744409,139.96,139.91,33.75225452]
[1743005550970,14.89744409,139.96,139.91,33.61009295]
[1743005551968,0.03,139.98,139.93,18.64964886]
[1743005552176,14.92744409,139.98,139.93,33.54709295]
[1743005552857,14.92744409,139.98,139.93,18.64964886]
[1743005553058,14.89744409,139.97,139.93,18.64964886]
[1743005553267,14.89744409,139.96,139.91,33.61009295]
[1743005553467,14.89744409,139.95,139.91,18.71264886]
[1743005554378,14.89744409,139.94,139.91,18.71264886]
[1743005554764,14.89744409,139.94,139.91,0.063]
[1743005555691,14.89744409,139.92,139.91,0.063]
[1743005555977,21.35744409,139.92,139.91,0.063]
[1743005556356,21.49960566,139.92,139.91,0.063]
[1743005556556,7.1479,139.9,139.84,0.063]
[1743005556860,14.89744409,139.86,139.84,0.063]
[1743005557058,6.46,139.85,139.84,0.063]
[1743005558168,21.35744409,139.85,139.84,0.063]
[1743005559381,14.89744409,139.87,139.84,0.063]
[1743005560079,14.89744409,139.86,139.84,0.063]
[1743005560681,14.89744409,139.85,139.84,0.063]
[1743005560977,23.31047556,139.85,139.84,0.063]
[1743005563167,23.45263713,139.85,139.84,0.063]
[1743005564791,23.31047556,139.85,139.84,0.063]
[1743005566475,29.79047556,139.85,139.84,0.063]
[1743005566684,23.31047556,139.85,139.84,0.063]
[1743005566986,29.79047556,139.85,139.84,0.063]
[1743005567382,29.77047556,139.85,139.84,0.063]
[1743005568291,23.31047556,139.85,139.84,0.063]
[1743005568601,29.77047556,139.85,139.84,0.063]
[1743005569211,23.31047556,139.85,139.84,0.063]
[1743005569403,29.79047556,139.85,139.84,0.063]
[1743005576002,6.48,139.85,139.84,0.063]
[1743005576400,29.79047556,139.85,139.84,0.063]
[1743005578505,6.48,139.85,139.84,0.063]
[1743005578725,6.46,139.87,139.84,0.063]
[1743005579596,23.31047556,139.88,139.84,23.37347556]
[1743005579823,29.77047556,139.88,139.84,0.063]
[1743005580746,23.31047556,139.87,139.84,0.063]
[1743005581125,23.31047556,139.86,139.84,0.063]
[1743005581646,23.31047556,139.85,139.84,0.063]
[1743005582937,14.92202947,139.85,139.84,0.063]
[1743005584337,14.92202947,139.86,139.84,0.063]
[1743005584939,14.92202947,139.85,139.84,0.063]
[1743005585140,23.31105732,139.85,139.84,0.063]
[1743005591772,23.31105732,139.86,139.84,0.063]
[1743005591923,23.31105732,139.89,139.84,0.063]
[1743005592129,6.46,139.88,139.84,0.063]
[1743005592550,6.46,139.88,139.84,23.37405732]
[1743005593130,82.0,139.88,139.84,23.37405732]
[1743005593864,82.0,139.88,139.84,0.063]
[1743005594161,82.0,139.88,139.84,42.02370618]
[1743005594331,82.0,139.88,139.85,31.56905732]
[1743005594534,82.0,139.88,139.86,23.31105732]
[1743005595150,29.80105732,139.91,139.86,23.31105732]
[1743005595331,29.80105732,139.91,139.85,31.56905732]
[1743005595741,23.31105732,139.9,139.85,31.56905732]
[1743005596572,23.31105732,139.9,139.85,8.258]
[1743005596754,23.31105732,139.88,139.84,0.063]
[1743005598168,23.31105732,139.87,139.84,0.063]
[1743005599290,105.31105732,139.86,139.84,0.063]
[1743005599438,105.31105732,139.85,139.84,0.063]
[1743005600259,111.77105732,139.85,139.84,0.063]
[1743005601446,37.06371889,139.85,139.84,0.063]
[1743005601947,29.91321889,139.85,139.84,0.063]
[1743005602870,29.77105732,139.85,139.84,0.063]
[1743005604356,6.46,139.85,139.84,0.063]
[1743005609374,14.91885589,139.88,139.84,0.063]
[1743005609578,6.46,139.87,139.84,0.063]
[1743005609979,21.37885589,139.88,139.84,0.063]
[1743005611106,82.0,139.87,139.84,14.98185589]
[1743005611480,82.0,139.87,139.84,0.063]
[1743005613476,96.91885589,139.87,139.84,0.063]
[1743005613899,96.91885589,139.86,139.84,0.063]
[1743005614109,14.91885589,139.85,139.84,0.063]
[1743005616501,82.0,139.86,139.84,0.063]
[1743005616709,96.91885589,139.86,139.84,0.063]
[1743005617502,82.0,139.86,139.84,0.063]
[1743005618522,82.0,139.85,139.84,0.063]
[1743005620201,96.91885589,139.85,139.84,0.063]
[1743005624405,14.91885589,139.85,139.84,0.063]
[1743005624607,14.91885589,139.87,139.84,0.063]
[1743005625011,14.91885589,139.85,139.84,0.063]
[1743005628703,14.91885589,139.86,139.84,0.063]
[1743005629105,14.91885589,139.85,139.84,0.063]
[1743005632614,22.21151746,139.85,139.84,0.063]
[1743005640340,81.937,139.82,139.79,0.063]
[1743005640542,14.91885589,139.8,139.79,0.063]
[1743005644440,96.85585589,139.81,139.79,0.063]
[1743005644752,6.46,139.8,139.79,0.063]
[1743005645444,82.0,139.83,139.79,14.98185589]
[1743005645645,96.91885589,139.83,139.79,0.063]
[1743005646944,14.91885589,139.82,139.79,0.063]
[1743005648839,14.91885589,139.8,139.79,0.063]
[1743005650120,14.91885589,139.81,139.79,0.063]
[1743005651546,14.91885589,139.82,139.79,0.063]
[1743005651750,21.37885589,139.83,139.79,0.063]
[1743005653732,82.0,139.82,139.79,0.063]
[1743005655334,96.91885589,139.82,139.79,0.063]
[1743005656756,14.91885589,139.81,139.79,0.063]
[1743005657431,14.91885589,139.8,139.79,0.063]
[1743005662358,15.06101746,139.8,139.79,0.063]
[1743005663258,22.21401746,139.8,139.79,0.063]
[1743005665060,15.06101746,139.8,139.79,0.063]
[1743005666262,22.21401746,139.8,139.79,0.063]
[1743005666465,15.06101746,139.8,139.79,0.063]
[1743005667567,14.91885589,139.81,139.79,0.063]
[1743005669478,14.91885589,139.8,139.79,0.063]
[1743005673854,15.06101746,139.8,139.79,0.063]
[1743005676057,0.14216157,139.8,139.79,0.063]
[1743005676244,15.06101746,139.8,139.79,0.063]
[1743005677775,14.91885589,139.8,139.79,0.063]
[1743005677953,13.6122,139.82,139.79,0.063]
[1743005677954,14.91885589,139.81,139.79,0.063]
[1743005678567,21.37885589,139.82,139.79,0.063]
[1743005678996,14.91885589,139.81,139.79,0.063]
[1743005680669,21.37885589,139.82,139.79,0.063]
[1743005681080,14.91885589,139.81,139.79,0.063]
[1743005683071,14.91885589,139.8,139.79,0.063]
[1743005683703,14.91885589,139.81,139.79,0.063]
[1743005685804,21.37885589,139.82,139.79,0.063]
[1743005686313,14.91885589,139.81,139.79,0.063]
[1743005686520,136.8,139.83,139.79,23.16795589]
[1743005686698,0.03,139.84,139.8,14.91885589]
[1743005687015,82.0,139.82,139.81,14.91885589]
[1743005687597,0.03,139.84,139.81,14.91885589]
[1743005687801,0.03,139.84,139.83,14.91885589]
[1743005689624,0.03,139.84,139.83,33.56850475]
[1743005689790,0.03,139.84,139.83,41.81346632]
[1743005689994,0.1991893,139.85,139.83,41.81346632]
[1743005690199,0.1991893,139.85,139.84,14.91885589]
[1743005690514,0.1991893,139.85,139.84,33.71066632]
[1743005691514,82.0,139.9,139.85,18.79181043]
[1743005691813,82.0,139.93,139.89,14.91885589]
[1743005692015,96.91885589,139.93,139.88,14.91885589]
[1743005692401,82.0,139.93,139.89,14.91885589]
[1743005692605,82.0,139.93,139.9,14.91885589]
[1743005694703,82.0,139.93,139.9,33.56850475]
[1743005695221,0.03,139.96,139.9,33.56850475]
[1743005695417,0.03,139.96,139.9,33.71066632]
[1743005698305,0.03,139.96,139.9,33.85282789]
[1743005698722,0.03,139.96,139.9,33.71066632]
[1743005700320,14.91885589,139.95,139.9,33.56850475]
[1743005700723,96.91885589,139.95,139.9,33.56850475]
[1743005701743,14.91885589,139.93,139.88,22.89615589]
[1743005702028,103.35885589,139.94,139.89,14.91885589]
[1743005704036,88.44,139.94,139.89,14.91885589]
[1743005705652,103.35885589,139.94,139.89,14.91885589]
[1743005707043,14.91885589,139.92,139.87,14.91885589]
[1743005707348,82.0,139.9,139.86,14.91885589]
[1743005707519,96.91885589,139.9,139.85,33.56850475]
[1743005708943,82.0,139.9,139.86,14.91885589]
[1743005709159,82.0,139.9,139.87,14.91885589]
[1743005709444,82.0,139.9,139.88,14.91885589]
[1743005710139,96.91885589,139.9,139.85,33.56850475]
[1743005710438,96.91885589,139.9,139.85,14.91885589]
[1743005711039,82.0,139.9,139.86,14.91885589]
[1743005711827,96.91885589,139.9,139.85,14.91885589]